fUSD/lending_fUSD_20240428
["ID","MTS","AMOUNT","RATE_DAILY","PERIOD"]
[14225,1714329047689,-237.15561263,0.00010958,2]
[14226,1714329047698,-500.0,0.00010958,2]
[14227,1714329047708,-500.0,0.00010958,2]
[14228,1714329047717,-500.0,0.00010958,2]
[14229,1714329047726,-500.0,0.00010958,2]
[14230,1714329047737,-1863.44,0.00010958,2]
[14231,1714329047746,-500.0,0.00010958,2]
[14232,1714329047756,-500.0,0.00010958,2]
[14233,1714329047765,-688.67,0.00010958,2]
[14234,1714329047774,-178.249581,0.00010958,2]
[14235,1714329047783,-500.0,0.00010958,2]
[14236,1714329047793,-500.0,0.00010958,2]
[14237,1714329047802,-500.0,0.00010958,2]
[14239,1714329047821,-525.95873797,0.00010958,2]
[14241,1714329047839,-500.0,0.00010958,2]
[14243,1714329047857,-562.73,0.00010958,2]
[14245,1714329047876,-500.0,0.00010958,2]
[14247,1714329047895,-572.9929295,0.00010958,2]
[14249,1714329047914,-500.0,0.00010958,2]
[14251,1714329047932,-500.0,0.00010958,2]
[14253,1714329047951,-500.0,0.00010958,2]
[14255,1714329047969,-500.0,0.00010958,2]
[14257,1714329047988,-500.0,0.00010958,2]
[14259,1714329048006,-500.0,0.00010958,2]
[14261,1714329048025,-500.0,0.00010958,2]
[14263,1714329048043,-500.0,0.00010958,2]
[14265,1714329048062,-626.13,0.00010958,2]
[14267,1714329048081,-500.0,0.00010958,2]
[14269,1714329048100,-876.81,0.00010958,2]
[14271,1714329048119,-500.0,0.00010958,2]
[14273,1714329048138,-500.0,0.00010958,2]
[14275,1714329048157,-500.40972532,0.00010958,2]
[14277,1714329048175,-500.0,0.00010958,2]
[14279,1714329048194,-765.33,0.00010958,2]
[14281,1714329048212,-1114.49,0.00010958,2]
[14283,1714329048231,-500.0,0.00010958,2]
[14285,1714329048249,-867.7,0.00010958,2]
[14287,1714329048268,-500.0,0.00010958,2]
[14289,1714329048287,-500.0,0.00010958,2]
[14291,1714329048305,-345.16790798,0.00010958,2]
[14293,1714329048324,-500.0,0.00010958,2]
[14295,1714329048344,-500.0,0.00010958,2]
[14297,1714329048362,-500.0,0.00010958,2]
[14299,1714329048380,-564.76014822,0.00010958,2]
[14301,1714329048399,-500.0,0.00010958,2]
[14303,1714329048418,-500.0,0.00010958,2]
[14305,1714329048437,-500.0,0.00010958,2]
[14307,1714329048456,-605.8,0.00010958,2]
[14309,1714329048475,-500.0,0.00010958,2]
[14311,1714329048493,-1059.27,0.00010958,2]
[14313,1714329048512,-500.0,0.00010958,2]
[14315,1714329048532,-517.79,0.00010958,2]
[14317,1714329048554,-500.0,0.00010958,2]
[14319,1714329048791,-500.0,0.00010958,2]
[14321,1714329048810,-1894.72,0.00010958,2]
[14323,1714329048829,-500.0,0.00010958,2]
[14325,1714329048848,-500.0,0.00010958,2]
[14327,1714329048866,-833.4,0.00010958,2]
[14329,1714329048884,-930.04,0.00010958,2]
[14331,1714329048903,-500.0,0.00010958,2]
[14333,1714329048922,-500.0,0.00010958,2]
[14335,1714329048940,-500.0,0.00010958,2]
[14337,1714329048959,-502.00089566,0.00010958,2]
[14339,1714329048977,-582.79,0.00010958,2]
[14341,1714329048996,-1012.58,0.00010958,2]
[14343,1714329049014,-1012.58,0.00010958,2]
[14345,1714329049033,-1012.58,0.00010958,2]
[14347,1714329049053,-1012.58,0.00010958,2]
[14349,1714329049074,-1012.58,0.00010958,2]
[14351,1714329049095,-1012.58,0.00010958,2]
[14353,1714329049114,-1012.58,0.00010958,2]
[14355,1714329049134,-1012.58,0.00010958,2]
[14357,1714329049156,-1012.58,0.00010958,2]
[14359,1714329049179,-1012.58,0.00010958,2]
[14361,1714329049199,-1012.58,0.00010958,2]
[14363,1714329049217,-1012.58,0.00010958,2]
[14365,1714329049235,-500.0,0.00010958,2]
[14367,1714329049254,-1012.58,0.00010958,2]
[14369,1714329049273,-1012.58,0.00010958,2]
[14371,1714329049291,-1012.75023596,0.00010958,2]
[14373,1714329049309,-500.0,0.00010958,2]
[14375,1714329049328,-500.0,0.00010958,2]
[14377,1714329049345,-500.0,0.00010958,2]
[14379,1714329049363,-244.89202381,0.00010958,2]
[14381,1714329049382,-1488.72,0.00010958,2]
[14383,1714329049400,-836.74,0.00010958,2]
[14385,1714329049418,-500.0,0.00010958,2]
[14387,1714329049436,-500.0,0.00010958,2]
[14389,1714329049455,-500.0,0.00010958,2]
[14391,1714329049473,-710.13,0.00010958,2]
[14393,1714329049492,-500.0,0.00010958,2]
[14395,1714329049511,-500.0,0.00010958,2]
[14397,1714329049530,-500.0,0.00010958,2]
[14399,1714329049548,-548.82933479,0.00010958,2]
[14401,1714329049566,-777.85,0.00010958,2]
[14403,1714329049585,-500.0,0.00010958,2]
[14404,1714329049594,-1171.06,0.00010958,2]
[14405,1714329049603,-500.0,0.00010958,2]
[14406,1714329049613,-500.0,0.00010958,2]
[14407,1714329049622,-500.0,0.00010958,2]
[14409,1714329049640,-500.0,0.00010958,2]
[14411,1714329049661,-690.62,0.00010958,2]
[14413,1714329049681,-681.46,0.00010958,2]
[14415,1714329049699,-500.0,0.00010958,2]
[14417,1714329049718,-500.0,0.00010958,2]
[14419,1714329049737,-500.0,0.00010958,2]
[14421,1714329049756,-523.34,0.00010958,2]
[14423,1714329049774,-500.0,0.00010958,2]
[14425,1714329049792,-559.63,0.00010958,2]
[14427,1714329049811,-500.0,0.00010958,2]
[14429,1714329049831,-196.46795252,0.00010958,2]
[14431,1714329049849,-500.0,0.00010958,2]
[14433,1714329049867,-500.0,0.00010958,2]
[14435,1714329049885,-500.0,0.00010958,2]
[14437,1714329049905,-500.0,0.00010958,2]
[14439,1714329049923,-500.0,0.00010958,2]
[14441,1714329049942,-937.48,0.00010958,2]
[14443,1714329049960,-500.0,0.00010958,2]
[14445,1714329049979,-500.0,0.00010958,2]
[14447,1714329049999,-500.0,0.00010958,2]
[14449,1714329050019,-500.0,0.00010958,2]
[14451,1714329050039,-1027.6,0.00010958,2]
[14452,1714329050049,-500.0,0.00010958,2]
[14453,1714329050059,-500.0,0.00010958,2]
[14454,1714329050070,-156.04157856,0.00010958,2]
[14455,1714329050079,-500.0,0.00010958,2]
[14456,1714329050089,-500.0,0.00010958,2]
[14457,1714329050099,-500.0,0.00010958,2]
[14458,1714329050108,-1205.63,0.00010958,2]
[14459,1714329050117,-500.0,0.00010958,2]
[14460,1714329050127,-500.0,0.00010958,2]
[14461,1714329050137,-500.0,0.00010958,2]
[14462,1714329050146,-500.0,0.00010958,2]
[14463,1714329050156,-500.0,0.00010958,2]
[14464,1714329050165,-848.59,0.00010958,2]
[14465,1714329050175,-502.12012369,0.00010958,2]
[14466,1714329050184,-681.62,0.00010958,2]
[14467,1714329050194,-500.0,0.00010958,2]
[14468,1714329050203,-500.0,0.00010958,2]
[14469,1714329050213,-500.0,0.00010958,2]
[14470,1714329050222,-500.0,0.00010958,2]
[14471,1714329050231,-500.0,0.00010958,2]
[14472,1714329050241,-500.0,0.00010958,2]
[14473,1714329050250,-500.0,0.00010958,2]
[14475,1714329050269,-500.0,0.00010958,2]
[14477,1714329050287,-500.0,0.00010958,2]
[14479,1714329050305,-724.03,0.00010958,2]
[14480,1714329050315,-500.0,0.00010958,2]
[14481,1714329050324,-500.0,0.00010958,2]
[14483,1714329050342,-842.42,0.00010958,2]
[14485,1714329050361,-887.92,0.00010958,2]
[14487,1714329050380,-1491.73,0.00010958,2]
[14489,1714329050400,-500.0,0.00010958,2]
[14491,1714329050420,-603.97758819,0.00010958,2]
[14493,1714329050440,-500.0,0.00010958,2]
[14495,1714329050459,-500.0,0.00010958,2]
[14497,1714329050478,-500.0,0.00010958,2]
[14499,1714329050497,-1067.66,0.00010958,2]
[14501,1714329050516,-1014.05,0.00010958,2]
[14503,1714329050535,-869.17,0.00010958,2]
[14505,1714329050555,-500.0,0.00010958,2]
[14507,1714329050574,-514.02702456,0.00010958,2]
[14509,1714329050593,-829.31,0.00010958,2]
[14511,1714329050612,-865.55,0.00010958,2]
[14513,1714329050631,-501.0853217,0.00010958,2]
[14515,1714329050650,-500.0,0.00010958,2]
[14517,1714329050674,-602.41,0.00010958,2]
[14519,1714329050693,-500.0,0.00010958,2]
[14521,1714329050713,-500.0,0.00010958,2]
[14523,1714329050732,-500.0,0.00010958,2]
[14525,1714329050753,-500.0,0.00010958,2]
[14527,1714329050771,-558.66,0.00010958,2]
[14529,1714329050790,-500.0,0.00010958,2]
[14531,1714329050809,-500.0,0.00010958,2]
[14533,1714329050829,-503.15636014,0.00010958,2]
[14535,1714329050848,-500.0,0.00010958,2]
[14537,1714329050866,-500.0,0.00010958,2]
[14539,1714329050884,-769.55,0.00010958,2]
[14541,1714329050903,-500.0,0.00010958,2]
[14543,1714329050922,-500.0,0.00010958,2]
[14545,1714329050942,-500.0,0.00010958,2]
[14547,1714329050960,-500.0,0.00010958,2]
[14549,1714329050979,-1056.93,0.00010958,2]
[14551,1714329050998,-500.0,0.00010958,2]
[14553,1714329051018,-2129.61,0.00010958,2]
[14555,1714329051037,-500.0,0.00010958,2]
[14557,1714329051055,-500.0,0.00010958,2]
[14558,1714329051066,-2366.39,0.00010958,2]
[14559,1714329051076,-500.0,0.00010958,2]
[14560,1714329051085,-720.54,0.00010958,2]
[14561,1714329051094,-500.0,0.00010958,2]
[14562,1714329051104,-500.0,0.00010958,2]
[14563,1714329051113,-500.0,0.00010958,2]
[14565,1714329051199,-500.0,0.00010958,2]
[14567,1714329051220,-737.96,0.00010958,2]
[14569,1714329051238,-500.0,0.00010958,2]
[14571,1714329051256,-500.0,0.00010958,2]
[14573,1714329051274,-500.0,0.00010958,2]
[14575,1714329051292,-613.02,0.00010958,2]
[14577,1714329051310,-500.0,0.00010958,2]
[14579,1714329051329,-500.0,0.00010958,2]
[14581,1714329051347,-500.0,0.00010958,2]
[14583,1714329051365,-1032.47,0.00010958,2]
[14585,1714329051382,-533.47,0.00010958,2]
[14587,1714329051401,-804.06,0.00010958,2]
[14589,1714329051431,-484.75,0.00010958,2]
[14591,1714329051450,-500.0,0.00010958,2]
[14593,1714329051468,-500.0,0.00010958,2]
[14595,1714329051487,-500.0,0.00010958,2]
[14597,1714329051506,-500.0,0.00010958,2]
[14599,1714329051525,-500.0,0.00010958,2]
[14601,1714329051544,-500.0,0.00010958,2]
[14603,1714329051563,-500.0,0.00010958,2]
[14605,1714329051584,-500.0,0.00010958,2]
[14607,1714329051603,-952.74,0.00010958,2]
[14609,1714329051623,-2067.73,0.00010958,2]
[14611,1714329051642,-500.0,0.00010958,2]
[14613,1714329051664,-849.7,0.00010958,2]
[14615,1714329051684,-500.0,0.00010958,2]
[14617,1714329051704,-554.98,0.00010958,2]
[14619,1714329051723,-500.0,0.00010958,2]
[14621,1714329051744,-500.0,0.00010958,2]
[14623,1714329051763,-500.0,0.00010958,2]
[14625,1714329051781,-932.3,0.00010958,2]
[14627,1714329051800,-500.0,0.00010958,2]
[14628,1714329051809,-500.0,0.00010958,2]
[14629,1714329051818,-500.0,0.00010958,2]
[14630,1714329051827,-500.0,0.00010958,2]
[14631,1714329051838,-1291.62,0.00010958,2]
[14632,1714329051847,-500.0,0.00010958,2]
[14633,1714329051856,-656.85,0.00010958,2]
[14634,1714329051865,-500.0,0.00010958,2]
[14635,1714329051875,-1325.99,0.00010958,2]
[14636,1714329051884,-500.0,0.00010958,2]
[14637,1714329051894,-500.0,0.00010958,2]
[14638,1714329051903,-500.0,0.00010958,2]
[14639,1714329051913,-500.0,0.00010958,2]
[14640,1714329051923,-500.0,0.00010958,2]
[14641,1714329051932,-1165.14,0.00010958,2]
[14642,1714329051941,-500.0,0.00010958,2]
[14643,1714329051950,-500.0,0.00010958,2]
[14645,1714329051970,-500.0,0.00010958,2]
[14646,1714329051979,-1935.97,0.00010958,2]
[14647,1714329051989,-1307.59,0.00010958,2]
[14648,1714329051999,-500.0,0.00010958,2]
[14649,1714329052008,-526.88,0.00010958,2]
[14650,1714329052018,-890.9,0.00010958,2]
[14651,1714329052027,-500.0,0.00010958,2]
[14652,1714329052036,-904.32,0.00010958,2]
[14653,1714329052046,-2097.93,0.00010958,2]
[14654,1714329052056,-500.0,0.00010958,2]
[14655,1714329052066,-28845.76,0.00010958,2]
[14656,1714329052075,-160.54951326,0.00010958,2]
[14657,1714329052085,-500.0,0.00010958,2]
[14658,1714329052094,-500.0,0.00010958,2]
[14659,1714329052104,-930.38,0.00010958,2]
[14661,1714329052124,-500.82040412,0.00010958,2]
[14663,1714329052144,-2955.84,0.00010958,2]
[14665,1714329052163,-608.95,0.00010958,2]
[14667,1714329052182,-500.0,0.00010958,2]
[14669,1714329052201,-500.0,0.00010958,2]
[14671,1714329052220,-508.32733147,0.00010958,2]
[14673,1714329052239,-2791.31,0.00010958,2]
[14675,1714329052258,-199.8020973,0.00010958,2]
[14677,1714329052277,-500.0,0.00010958,2]
[14679,1714329052296,-1126.74,0.00010958,2]
[14681,1714329052316,-500.0,0.00010958,2]
[14683,1714329052334,-1004.16,0.00010958,2]
[14685,1714329052353,-500.0,0.00010958,2]
[14687,1714329052372,-1952.42,0.00010958,2]
[14689,1714329052391,-500.0,0.00010958,2]
[14691,1714329052410,-500.0,0.00010958,2]
[14693,1714329052428,-500.0,0.00010958,2]
[14695,1714329052447,-502.77242731,0.00010958,2]
[14697,1714329052466,-1448.6,0.00010958,2]
[14699,1714329052485,-954.97,0.00010958,2]
[14701,1714329052504,-732.8,0.00010958,2]
[14703,1714329052523,-8208.53,0.00010958,2]
[14704,1714329052533,-1625.98,0.00010958,2]
[14705,1714329052543,-536.39,0.00010958,2]
[14706,1714329052552,-500.0,0.00010958,2]
[14707,1714329052562,-500.0,0.00010958,2]
[14708,1714329052572,-500.0,0.00010958,2]
[14709,1714329052582,-500.0,0.00010958,2]
[14710,1714329052591,-500.0,0.00010958,2]
[14711,1714329052601,-500.0,0.00010958,2]
[14712,1714329052610,-500.0,0.00010958,2]
[14713,1714329052620,-1055.94,0.00010958,2]
[14714,1714329052630,-1696.02,0.00010958,2]
[14715,1714329052639,-8634.93,0.00010958,2]
[14716,1714329052649,-549.47,0.00010958,2]
[14717,1714329052662,-500.0,0.00010958,2]
[14718,1714329052671,-905.2,0.00010958,2]
[14719,1714329052680,-4114.94,0.00010958,2]
[14720,1714329052689,-500.0,0.00010958,2]
[14721,1714329052699,-500.0,0.00010958,2]
[14722,1714329052708,-1028.65,0.00010958,2]
[14723,1714329052717,-951.17,0.00010958,2]
[14724,1714329052726,-500.0,0.00010958,2]
[14725,1714329052735,-500.0,0.00010958,2]
[14726,1714329052747,-500.0,0.00010958,2]
[14727,1714329052757,-1720.48,0.00010958,2]
[14728,1714329052766,-500.0,0.00010958,2]
[14729,1714329052776,-1490.71,0.00010958,2]
[14730,1714329052785,-500.0,0.00010958,2]
[14731,1714329052794,-3429.26,0.00010958,2]
[14732,1714329052803,-500.0,0.00010958,2]
[14733,1714329052812,-500.0,0.00010958,2]
[14734,1714329052822,-1333.24,0.00010958,2]
[14735,1714329052831,-500.0,0.00010958,2]
[14736,1714329052841,-767.86,0.00010958,2]
[14737,1714329052850,-500.0,0.00010958,2]
[14738,1714329052859,-3161.91,0.00010958,2]
[14739,1714329052868,-500.0,0.00010958,2]
[14740,1714329052877,-500.0,0.00010958,2]
[14741,1714329052887,-500.0,0.00010958,2]
[14742,1714329052896,-500.0,0.00010958,2]
[14743,1714329052905,-500.0,0.00010958,2]
[14744,1714329052914,-370.13987545,0.00010958,2]
[14745,1714329052923,-500.0,0.00010958,2]
[14746,1714329052932,-1495.49,0.00010958,2]
[14747,1714329052941,-15996.67,0.00010958,2]
[14748,1714329052950,-500.0,0.00010958,2]
[14749,1714329052960,-500.0,0.00010958,2]
[14751,1714329052978,-500.64596192,0.00010958,2]
[14753,1714329052997,-19514.18,0.00010958,2]
[14755,1714329053015,-789.38,0.00010958,2]
[14757,1714329053034,-500.0,0.00010958,2]
[14759,1714329053053,-500.0,0.00010958,2]
[14760,1714329053062,-500.0,0.00010958,2]
[14761,1714329053071,-2249.55,0.00010958,2]
[14762,1714329053080,-1366.6,0.00010958,2]
[14763,1714329053090,-500.0,0.00010958,2]
[14764,1714329053099,-1270.09,0.00010958,2]
[14765,1714329053108,-500.0,0.00010958,2]
[14766,1714329053117,-3202.06,0.00010958,2]
[14767,1714329053126,-3871.91,0.00010958,2]
[14768,1714329053135,-738.19,0.00010958,2]
[14769,1714329053144,-500.0,0.00010958,2]
[14770,1714329053154,-500.0,0.00010958,2]
[14771,1714329053163,-1052.48,0.00010958,2]
[14772,1714329053172,-859.1,0.00010958,2]
[14773,1714329053182,-500.0,0.00010958,2]
[14775,1714329053202,-500.0,0.00010958,2]
[14776,1714329053212,-500.0,0.00010958,2]
[14777,1714329053221,-1538.2,0.00010958,2]
[14778,1714329053230,-500.0,0.00010958,2]
[14779,1714329053239,-500.0,0.00010958,2]
[14781,1714329053258,-726.63,0.00010958,2]
[14783,1714329053277,-500.0,0.00010958,2]
[14785,1714329053298,-500.0,0.00010958,2]
[14786,1714329053308,-1530.5,0.00010958,2]
[14787,1714329053317,-500.0,0.00010958,2]
[14788,1714329053327,-500.0,0.00010958,2]
[14789,1714329053337,-1297.13,0.00010958,2]
[14790,1714329053346,-1018.03,0.00010958,2]
[14791,1714329053356,-6205.7,0.00010958,2]
[14792,1714329053365,-176.63705627,0.00010958,2]
[14793,1714329053374,-1613.15,0.00010958,2]
[14794,1714329053383,-500.0,0.00010958,2]
[14795,1714329053393,-1675.05,0.00010958,2]
[14796,1714329053402,-10958.77,0.00010958,2]
[14797,1714329053412,-672.71,0.00010958,2]
[14798,1714329053421,-672.71,0.00010958,2]
[14799,1714329053432,-672.71,0.00010958,2]
[14800,1714329053442,-672.71,0.00010958,2]
[14801,1714329053452,-672.71,0.00010958,2]
[14802,1714329053461,-672.71,0.00010958,2]
[14803,1714329053471,-672.71,0.00010958,2]
[14804,1714329053480,-672.71,0.00010958,2]
[14805,1714329053490,-500.0,0.00010958,2]
[14806,1714329053500,-1395.16,0.00010958,2]
[14807,1714329053509,-672.71,0.00010958,2]
[14808,1714329053519,-1018.3,0.00010958,2]
[14809,1714329053529,-672.71,0.00010958,2]
[14810,1714329053538,-500.0,0.00010958,2]
[14811,1714329053548,-672.71,0.00010958,2]
[14812,1714329053557,-500.0,0.00010958,2]
[14813,1714329053567,-1585.31,0.00010958,2]
[14814,1714329053577,-500.0,0.00010958,2]
[14815,1714329053586,-500.0,0.00010958,2]
[14816,1714329053595,-633.01,0.00010958,2]
[14817,1714329053604,-500.0,0.00010958,2]
[14818,1714329053615,-500.0,0.00010958,2]
[14819,1714329053624,-42065.6,0.00010958,2]
[14821,1714329053642,-500.0,0.00010958,2]
[14823,1714329053662,-1402.03,0.00010958,2]
[14825,1714329053682,-500.0,0.00010958,2]
[14827,1714329053699,-500.0,0.00010958,2]
[14829,1714329053718,-500.0,0.00010958,2]
[14831,1714329053737,-2602.9,0.00010958,2]
[14832,1714329053746,-500.0,0.00010958,2]
[14833,1714329053756,-500.0,0.00010958,2]
[14834,1714329053765,-769.08,0.00010958,2]
[14835,1714329053774,-500.0,0.00010958,2]
[14836,1714329053783,-500.0,0.00010958,2]
[14837,1714329053792,-1691.23,0.00010958,2]
[14838,1714329053801,-1669.71,0.00010958,2]
[14839,1714329053811,-500.0,0.00010958,2]
[14840,1714329053820,-2082.9,0.00010958,2]
[14841,1714329053830,-472.23402923,0.00010958,2]
[14842,1714329053840,-4569.34,0.00010958,2]
[14843,1714329053849,-500.0,0.00010958,2]
[14845,1714329053867,-500.0,0.00010958,2]
[14847,1714329053885,-978.2,0.00010958,2]
[14849,1714329053903,-500.0,0.00010958,2]
[14850,1714329053912,-500.0,0.00010958,2]
[14851,1714329053921,-4338.45,0.00010958,2]
[14852,1714329053930,-500.0,0.00010958,2]
[14853,1714329053940,-23869.88,0.00010958,2]
[14854,1714329053949,-500.0,0.00010958,2]
[14855,1714329053958,-500.0,0.00010958,2]
[14857,1714329053975,-500.0,0.00010958,2]
[14858,1714329053984,-1242.44,0.00010958,2]
[14859,1714329053993,-500.0,0.00010958,2]
[14860,1714329054002,-1489.55,0.00010958,2]
[14861,1714329054011,-500.0,0.00010958,2]
[14862,1714329054020,-500.0,0.00010958,2]
[14863,1714329054029,-1816.26,0.00010958,2]
[14864,1714329054038,-598.29,0.00010958,2]
[14865,1714329054047,-853.69,0.00010958,2]
[14866,1714329054055,-500.0,0.00010958,2]
[14867,1714329054064,-500.0,0.00010958,2]
[14868,1714329054075,-744.76,0.00010958,2]
[14869,1714329054084,-500.0,0.00010958,2]
[14870,1714329054093,-2315.27,0.00010958,2]
[14871,1714329054102,-1396.47,0.00010958,2]
[14872,1714329054111,-500.0,0.00010958,2]
[14873,1714329054120,-500.0,0.00010958,2]
[14874,1714329054129,-500.0,0.00010958,2]
[14875,1714329054138,-500.0,0.00010958,2]
[14876,1714329054147,-500.0,0.00010958,2]
[14877,1714329054156,-5437.95,0.00010958,2]
[14878,1714329054165,-1654.84,0.00010958,2]
[14879,1714329054174,-500.0,0.00010958,2]
[14880,1714329054182,-1002.92,0.00010958,2]
[14881,1714329054191,-500.0,0.00010958,2]
[14882,1714329054200,-557.45,0.00010958,2]
[14883,1714329054209,-500.0,0.00010958,2]
[14884,1714329054218,-500.0,0.00010958,2]
[14885,1714329054227,-937.09,0.00010958,2]
[14886,1714329054236,-500.0,0.00010958,2]
[14887,1714329054245,-500.0,0.00010958,2]
[14888,1714329054254,-1605.35,0.00010958,2]
[14889,1714329054263,-500.0,0.00010958,2]
[14890,1714329054272,-970.64,0.00010958,2]
[14891,1714329054280,-9867.65,0.00010958,2]
[14892,1714329054289,-1552.38,0.00010958,2]
[14893,1714329054298,-946.14,0.00010958,2]
[14894,1714329054307,-529.05,0.00010958,2]
[14895,1714329054316,-235.40121546,0.00010958,2]
[14896,1714329054326,-2313.26,0.00010958,2]
[14897,1714329054336,-500.0,0.00010958,2]
[14898,1714329054345,-752.06,0.00010958,2]
[14899,1714329054354,-2307.17,0.00010958,2]
[14900,1714329054364,-5622.39,0.00010958,2]
[14901,1714329054373,-500.0,0.00010958,2]
[14902,1714329054382,-993.02,0.00010958,2]
[14903,1714329054391,-500.0,0.00010958,2]
[14904,1714329054400,-854.43,0.00010958,2]
[14905,1714329054410,-648.51870476,0.00010958,2]
[14906,1714329054419,-962.05,0.00010958,2]
[14907,1714329054428,-500.0,0.00010958,2]
[14908,1714329054437,-1819.29,0.00010958,2]
[14909,1714329054446,-500.0,0.00010958,2]
[14910,1714329054455,-2010.03,0.00010958,2]
[14911,1714329054464,-500.0,0.00010958,2]
[14912,1714329054473,-550.89537953,0.00010958,2]
[14913,1714329054482,-500.0,0.00010958,2]
[14915,1714329054501,-883.46,0.00010958,2]
[14917,1714329054519,-3134.07,0.00010958,2]
[14918,1714329054528,-930.49,0.00010958,2]
[14919,1714329054537,-500.0,0.00010958,2]
[14920,1714329054547,-312.79244842,0.00010958,2]
[14921,1714329054556,-660.98,0.00010958,2]
[14923,1714329054575,-500.0,0.00010958,2]
[14925,1714329054593,-1380.46,0.00010958,2]
[14927,1714329054611,-3231.29,0.00010958,2]
[14929,1714329054630,-500.0,0.00010958,2]
[14931,1714329054648,-539.45421001,0.00010958,2]
[14933,1714329054671,-633.32,0.00010958,2]
[14935,1714329054692,-900.78,0.00010958,2]
[14937,1714329054711,-500.0,0.00010958,2]
[14939,1714329054730,-1510.06,0.00010958,2]
[14941,1714329054749,-2166.18,0.00010958,2]
[14943,1714329054767,-1985.87,0.00010958,2]
[14945,1714329054786,-992.28,0.00010958,2]
[14947,1714329054805,-500.0,0.00010958,2]
[14949,1714329054823,-500.0,0.00010958,2]
[14951,1714329054841,-570.7,0.00010958,2]
[14953,1714329054859,-1290.26,0.00010958,2]
[14955,1714329054877,-2248.37,0.00010958,2]
[14957,1714329054895,-500.0,0.00010958,2]
[14959,1714329054913,-500.0,0.00010958,2]
[14960,1714329054922,-516.88,0.00010958,2]
[14961,1714329054931,-554.01,0.00010958,2]
[14962,1714329054941,-500.0,0.00010958,2]
[14963,1714329054950,-500.0,0.00010958,2]
[14964,1714329054959,-3322.95,0.00010958,2]
[14965,1714329054968,-500.0,0.00010958,2]